[Event "HUN-ch U8-U18 2019"]
[Site "Balatonlelle"]
[Date "2019.06.25"]
[Round "6.34"]
[White "Pasti, Zsombor"]
[Black "Nagy, Levente"]
[Result "1-0"]
[ECO "B38"]
[WhiteElo "1641"]
[BlackElo "2092"]
[Annotator "NA"]
[PlyCount "147"]
[EventDate "2019.06.21"]
[EventType "swiss"]
[EventCountry "HUN"]
[SourceTitle "playchess.com"]
[Source "ChessBase"]
[SourceQuality "1"]
[TimeControl "40/5400+30:1800+30"]

1. e4 {[%emt 0:00:01]} c5 {[%emt 0:00:35]} 2. c4 {[%emt 0:00:07]} Nc6 {[%emt 0:00:41]} 3. Ne2 {[%emt 0:00:06]} g6 {[%emt 0:00:40]} 4. d4 {[%emt 0:00:28]} cxd4 {[%emt 0:00:49]} 5. Nxd4 {[%emt 0:00:20]} Bg7 {[%emt 0:00:45]} 6. Be3 {[%emt 0:00:12]} Nf6 {[%emt 0:00:45]} 7. Nc3 {[%emt 0:00:43]} O-O {[%emt 0:01:00]} 8. g3 {[%emt 0:00:53]} Ng4 {[%emt 0:01:16]} 9. Qxg4 {[%emt 0:04:57]} Nxd4 {[%emt 0:01:29]} 10. Qd1 {[%emt 0:02:39]} Nc6 {[%emt 0:00:56]} 11. Bg2 {[%emt 0:00:52]} d6 {[%emt 0:02:34]} 12. O-O {[%emt 0:01:29]} Be6 {[%emt 0:01:30]} 13. Nd5 {[%emt 0:04:22]} Qd7 {[%emt 0:04:35]} 14. Rb1 {[%emt 0:01:57]} Bh3 {[%emt 0:02:55]} 15. b4 {[%emt 0:01:31]} Bxg2 {[%emt 0:01:30]} 16. Kxg2 {[%emt 0:00:10]} e6 {[%emt 0:01:27]} 17. Nf4 {[%emt 0:00:37]} Ne5 {[%emt 0:01:52]} 18. c5 {[%emt 0:01:03]} dxc5 {[%emt 0:01:15]} 19. Bxc5 {[%emt 0:04:05]} Rfd8 {[%emt 0:02:11]} 20. Qb3 {[%emt 0:01:02]} Qc6 {[%emt 0:01:59]} 21. Rbc1 {[%emt 0:00:23]} Qxe4+ {[%emt 0:01:15]} 22. f3 {[%emt 0:01:05]} Qf5 {[%emt 0:00:17]} 23. Qe3 {[%emt 0:02:22]} Nd3 {[%emt 0:03:37]} 24. Nxd3 {[%emt 0:04:14]} Rxd3 {[%emt 0:00:33]} 25. Qe2 {[%emt 0:01:25]} Rad8 {[%emt 0:01:44]} 26. Rcd1 {[%emt 0:02:45]} b6 {[%emt 0:02:54]} 27. Be7 {[%emt 0:00:19]} R8d7 {[%emt 0:01:38]} 28. g4 {[%emt 0:00:23]} Qd5 {[%emt 0:01:12]} 29. Rxd3 {[%emt 0:10:58]} Qxd3 {[%emt 0:00:46]} 30. Qxd3 {[%emt 0:00:08]} Rxd3 {[%emt 0:00:20]} 31. Rc1 {[%emt 0:00:07]} h6 {[%emt 0:01:02]} 32. Rc8+ {[%emt 0:00:53]} Kh7 {[%emt 0:00:18]} 33. Rc2 {[%emt 0:02:01]} Rd7 {[%emt 0:00:38]} 34. Bh4 {[%emt 0:00:07]} Bf8 {[%emt 0:01:15]} 35. b5 {[%emt 0:00:49]} Bc5 {[%emt 0:01:33]} 36. Bg3 {[%emt 0:03:11]} f5 {[%emt 0:01:57]} 37. Kf1 {[%emt 0:02:46]} Rd1+ {[%emt 0:00:48]} 38. Ke2 {[%emt 0:00:34]} Rb1 {[%emt 0:00:27]} 39. a4 {[%emt 0:01:00]} Rb4 {[%emt 0:00:37]} 40. Ra2 {[%emt 0:00:00]} fxg4 {[%emt 0:00:00]} 41. fxg4 {[%emt 0:01:38]} Rxg4 {[%emt 0:01:00]} 42. Kf3 {[%emt 0:01:26]} Rd4 {[%emt 0:01:10]} 43. Bb8 {[%emt 0:01:07]} Rd7 {[%emt 0:01:00]} 44. Ke4 {[%emt 0:01:22]} Rd8 {[%emt 0:01:57]} 45. Bc7 {[%emt 0:00:43]} Rc8 {[%emt 0:00:33]} 46. Bg3 {[%emt 0:00:10]} g5 {[%emt 0:01:30]} 47. Ke5 {[%emt 0:00:22]} Re8 {[%emt 0:00:50]} 48. Kf6 {[%emt 0:01:57]} e5 {[%emt 0:02:20]} 49. Bxe5 {[%emt 0:02:44]} Rf8+ {[%emt 0:00:28]} 50. Ke6 {[%emt 0:00:10]} Re8+ {[%emt 0:00:13]} 51. Kd5 {[%emt 0:00:07]} Rd8+ {[%emt 0:00:25]} 52. Kc6 {[%emt 0:00:27]} Re8 {[%emt 0:00:42]} 53. Bd6 {[%emt 0:03:43]} Bxd6 {[%emt 0:00:43]} 54. Kxd6 {[%emt 0:00:15]} Rc8 {[%emt 0:00:43]} 55. Re2 {[%emt 0:00:50]} Kg6 {[%emt 0:00:49]} 56. Re7 {[%emt 0:00:14]} Rc2 {[%emt 0:00:23]} 57. Rxa7 {[%emt 0:00:38]} Rxh2 {[%emt 0:00:11]} 58. Rb7 {[%emt 0:00:06]} g4 {[%emt 0:00:14]} 59. Rxb6 {[%emt 0:00:16]} g3 {[%emt 0:00:06]} 60. Rb8 {[%emt 0:01:22]} Kh5 61. a5 {[%emt 0:00:52]} Ra2 {[%emt 0:00:53]} 62. a6 {[%emt 0:00:20]} g2 {[%emt 0:00:22]} 63. Rg8 {[%emt 0:00:09]} Kh4 {[%emt 0:00:38]} 64. Rxg2 {[%emt 0:00:07]} Rxg2 {[%emt 0:00:16]} 65. a7 {[%emt 0:00:11]} Ra2 {[%emt 0:00:26]} 66. b6 {[%emt 0:00:09]} Ra6 {[%emt 0:00:16]} 67. Kc7 {[%emt 0:00:11]} Kg4 68. Kb7 {[%emt 0:01:22]} Ra1 {[%emt 0:01:15]} 69. a8=Q {[%emt 0:00:11]} Rxa8 {[%emt 0:00:05]} 70. Kxa8 {[%emt 0:00:09]} h5 {[%emt 0:00:01]} 71. b7 {[%emt 0:00:15]} h4 {[%emt 0:00:03]} 72. b8=Q {[%emt 0:00:22]} h3 {[%emt 0:00:04]} 73. Qh2 {[%emt 0:00:10]} Kh4 {[%emt 0:00:08]} 74. Kb7 1-0

[Event "HUN-ch U8-U18 2019"]
[Site "Balatonlelle"]
[Date "2019.06.25"]
[Round "6.35"]
[White "Megyeri, Martin"]
[Black "Toth, Rafael"]
[Result "1-0"]
[ECO "B02"]
[WhiteElo "1520"]
[BlackElo "1178"]
[Annotator "NA"]
[PlyCount "47"]
[EventDate "2019.06.21"]
[EventType "swiss"]
[EventCountry "HUN"]
[SourceTitle "playchess.com"]
[Source "ChessBase"]
[SourceQuality "1"]
[TimeControl "40/5400+30:1800+30"]

1. e4 {[%emt 0:00:01]} Nf6 {[%emt 0:00:06]} 2. e5 {[%emt 0:00:08]} Nd5 {[%emt 0:00:06]} 3. Nc3 {[%emt 0:00:09]} Nb6 {[%emt 0:00:55]} 4. Nf3 {[%emt 0:00:53]} d6 {[%emt 0:01:10]} 5. exd6 {[%emt 0:01:07]} cxd6 {[%emt 0:00:11]} 6. Bb5+ {[%emt 0:00:27]} Bd7 {[%emt 0:00:37]} 7. Bxd7+ {[%emt 0:00:14]} N8xd7 {[%emt 0:00:27]} 8. O-O {[%emt 0:00:29]} e5 {[%emt 0:01:03]} 9. d4 {[%emt 0:00:35]} Be7 {[%emt 0:03:08]} 10. dxe5 {[%emt 0:01:16]} Nxe5 {[%emt 0:02:38]} 11. Re1 {[%emt 0:00:15]} Nxf3+ {[%emt 0:02:05]} 12. Qxf3 {[%emt 0:00:15]} d5 {[%emt 0:01:32]} 13. Bg5 {[%emt 0:03:56]} f6 {[%emt 0:04:21]} 14. Bf4 {[%emt 0:00:51]} O-O {[%emt 0:01:52]} 15. Rad1 {[%emt 0:02:40]} Bb4 {[%emt 0:07:43]} 16. a3 {[%emt 0:02:30]} Bxc3 {[%emt 0:00:32]} 17. Qxc3 {[%emt 0:00:53]} Rc8 {[%emt 0:01:42]} 18. Qd3 {[%emt 0:05:27]} Re8 {[%emt 0:02:26]} 19. Qb5 {[%emt 0:02:53]} Rxe1+ {[%emt 0:01:30]} 20. Rxe1 {[%emt 0:00:18]} Qd7 {[%emt 0:05:50]} 21. Qe2 {[%emt 0:03:53]} Qf5 {[%emt 0:09:31]} 22. Bg3 {[%emt 0:01:20]} Qxc2 {[%emt 0:03:57]} 23. Qe6+ {[%emt 0:00:38]} Kh8 {[%emt 0:05:01]} 24. Qe8+ {[%emt 0:00:22]} 1-0

[Event "HUN-ch U8-U18 2019"]
[Site "Balatonlelle"]
[Date "2019.06.25"]
[Round "6.36"]
[White "Csontos, Aron"]
[Black "Berla, Zoltan Mate"]
[Result "1-0"]
[ECO "B22"]
[WhiteElo "1376"]
[BlackElo "1098"]
[Annotator "NA"]
[PlyCount "83"]
[EventDate "2019.06.21"]
[EventType "swiss"]
[EventCountry "HUN"]
[SourceTitle "playchess.com"]
[Source "ChessBase"]
[SourceQuality "1"]
[TimeControl "40/5400+30:1800+30"]

1. e4 {[%emt 0:00:03]} c5 {[%emt 0:00:05]} 2. c3 {[%emt 0:00:04]} d5 {[%emt 0:00:04]} 3. exd5 {[%emt 0:00:05]} Qxd5 {[%emt 0:00:06]} 4. d4 {[%emt 0:00:06]} Nf6 {[%emt 0:00:12]} 5. Nf3 {[%emt 0:00:12]} e6 {[%emt 0:00:31]} 6. Be2 {[%emt 0:01:03]} Nc6 {[%emt 0:01:53]} 7. h3 {[%emt 0:01:04]} cxd4 {[%emt 0:00:38]} 8. cxd4 {[%emt 0:00:18]} Bb4+ {[%emt 0:00:26]} 9. Nc3 {[%emt 0:00:51]} Ne4 {[%emt 0:00:44]} 10. Bd2 {[%emt 0:00:25]} Nxc3 {[%emt 0:01:28]} 11. bxc3 {[%emt 0:00:15]} Be7 {[%emt 0:00:28]} 12. O-O {[%emt 0:00:25]} O-O {[%emt 0:00:47]} 13. Be3 {[%emt 0:03:30]} Rd8 {[%emt 0:06:31]} 14. Bd3 {[%emt 0:01:03]} e5 {[%emt 0:03:15]} 15. c4 {[%emt 0:00:36]} Qd6 {[%emt 0:03:53]} 16. d5 {[%emt 0:00:13]} Nb4 {[%emt 0:00:53]} 17. Be4 {[%emt 0:02:04]} f5 {[%emt 0:03:27]} 18. c5 {[%emt 0:00:09]} Qa6 {[%emt 0:06:54]} 19. d6 {[%emt 0:00:53]} Bf6 {[%emt 0:03:23]} 20. Qb3+ {[%emt 0:00:20]} Kh8 {[%emt 0:00:27]} 21. Qxb4 {[%emt 0:00:21]} fxe4 {[%emt 0:00:22]} 22. Qxe4 {[%emt 0:00:07]} Re8 {[%emt 0:02:45]} 23. Rfd1 {[%emt 0:01:33]} Bd7 {[%emt 0:00:53]} 24. Rab1 {[%emt 0:02:23]} Bc6 {[%emt 0:02:45]} 25. Qc2 {[%emt 0:01:49]} Bxf3 {[%emt 0:01:34]} 26. gxf3 {[%emt 0:00:10]} Qc6 {[%emt 0:03:15]} 27. Qe4 {[%emt 0:00:31]} Qxe4 {[%emt 0:00:38]} 28. fxe4 {[%emt 0:00:07]} Rab8 {[%emt 0:00:10]} 29. Kf1 {[%emt 0:04:24]} a6 {[%emt 0:00:24]} 30. Ke2 {[%emt 0:00:13]} Kg8 {[%emt 0:00:08]} 31. Kd3 {[%emt 0:00:36]} Kf7 {[%emt 0:01:12]} 32. Kc4 {[%emt 0:00:59]} Ke6 {[%emt 0:04:34]} 33. a4 {[%emt 0:01:05]} Kd7 {[%emt 0:01:11]} 34. Kd5 {[%emt 0:00:15]} Rec8 {[%emt 0:07:29]} 35. Rg1 {[%emt 0:00:50]} g6 {[%emt 0:03:31]} 36. f4 {[%emt 0:01:17]} Re8 {[%emt 0:01:13]} 37. Rb3 {[%emt 0:02:51]} Bd8 {[%emt 0:02:17]} 38. fxe5 {[%emt 0:00:23]} Re6 {[%emt 0:00:16]} 39. Rf1 {[%emt 0:00:39]} h5 {[%emt 0:00:28]} 40. Rfb1 {[%emt 0:00:00]} b6 {[%emt 0:00:00]} 41. c6+ {[%emt 0:00:35]} Ke8 {[%emt 0:00:46]} 42. c7 {[%emt 0:00:11]} 1-0

[Event "HUN-ch U8-U18 2019"]
[Site "Balatonlelle"]
[Date "2019.06.26"]
[Round "7.1"]
[White "Koltai, Dora"]
[Black "Pasti, Anna"]
[Result "1-0"]
[ECO "B22"]
[WhiteElo "1773"]
[BlackElo "1955"]
[Annotator "NA RC"]
[PlyCount "85"]
[EventDate "2019.06.21"]
[EventType "swiss"]
[EventCountry "HUN"]
[SourceTitle "playchess.com"]
[Source "ChessBase"]
[SourceQuality "1"]
[TimeControl "40/5400+30:1800+30"]

1. e4 {[%emt 0:00:06]} c5 {[%emt 0:00:10]} 2. c3 {[%emt 0:00:22]} d5 {[%emt 0:00:05]} 3. exd5 {[%emt 0:00:08]} Qxd5 {[%emt 0:00:07]} 4. d4 {[%emt 0:00:20]} Nf6 {[%emt 0:00:17]} 5. Nf3 {[%emt 0:00:43]} Nc6 {[%emt 0:00:36]} 6. Be2 {[%emt 0:01:10]} e6 {[%emt 0:00:37]} 7. Na3 {[%emt 0:01:25]} a6 {[%emt 0:00:13]} 8. Nc4 {[%emt 0:02:21]} Qd8 {[%emt 0:01:13]} 9. O-O {[%emt 0:04:35]} cxd4 {[%emt 0:02:44]} 10. Nxd4 {[%emt 0:05:43]} Nxd4 {[%emt 0:02:06]} 11. cxd4 {[%emt 0:02:06]} b5 {[%emt 0:04:20]} 12. Ne5 {[%emt 0:04:56]} Bb7 {[%emt 0:01:42]} 13. Bg5 {[%emt 0:07:26]} Be7 {[%emt 0:02:44]} 14. Bf3 {[%emt 0:06:44]} Nd5 {[%emt 0:01:31]} 15. Bxe7 {[%emt 0:01:24]} Qxe7 {[%emt 0:00:07]} 16. Rc1 {[%emt 0:03:09]} O-O {[%emt 0:02:58]} 17. Nc6 {[%emt 0:05:07]} Qd7 {[%emt 0:02:34]} 18. Bxd5 {[%emt 0:02:07]} exd5 {[%emt 0:00:17]} 19. Ne5 {[%emt 0:03:43]} Qd6 {[%emt 0:04:46]} 20. Rc5 {[%emt 0:05:04]} Rac8 {[%emt 0:02:42]} 21. b4 {[%emt 0:03:55]} a5 {[%emt 0:02:02]} 22. a3 {[%emt 0:02:56]} Rxc5 {[%emt 0:06:30]} 23. bxc5 {[%emt 0:00:17]} Qc7 {[%emt 0:00:14]} 24. Qb3 {[%emt 0:05:51]} f6 {[%emt 0:03:00]} 25. Nf3 {[%emt 0:01:43]} Bc6 {[%emt 0:01:00]} 26. Re1 {[%emt 0:01:44]} Qd7 {[%emt 0:01:37]} 27. Qc3 {[%emt 0:03:37]} Ra8 {[%emt 0:02:08]} 28. h3 {[%emt 0:02:58]} Qb7 {[%emt 0:04:05]} 29. Rb1 {[%emt 0:02:30]} Qc7 {[%emt 0:07:17]} 30. Re1 {[%emt 0:03:21]} Rb8 {[%emt 0:01:05]} 31. Rb1 {[%emt 0:06:45]} Bd7 {[%emt 0:03:33]} 32. Ne1 {[%emt 0:06:37]} Bf5 {[%emt 0:01:21]} 33. Nd3 {[%emt 0:01:51]} Qc6 {[%emt 0:04:54]} 34. Re1 {[%emt 0:01:15]} b4 {[%emt 0:02:45]} 35. axb4 {[%emt 0:00:44]} Qb5 {[%emt 0:02:42]} 36. Nb2 {[%emt 0:02:16]} Qxb4 {[%emt 0:00:43]} 37. Nd1 {[%emt 0:00:54]} Qa4 {[%emt 0:02:53]} 38. Ne3 {[%emt 0:00:32]} Rb3 {[%emt 0:01:32]} 39. Qa1 {[%emt 0:00:32]} Ra3 {[%emt 0:00:39]} 40. Qc1 {[%emt 0:00:00]} Be6 {[%emt 0:00:00]} 41. c6 {[%emt 0:16:03]} Rb3 {[%emt 0:10:05]} 42. c7 {[%emt 0:02:58]} Qd7 {[%emt 0:01:06]} 43. Nxd5 {[%emt 0:01:49]} 1-0

[Event "HUN-ch U8-U18 2019"]
[Site "Balatonlelle"]
[Date "2019.06.26"]
[Round "7.1"]
[White "Deak-Sala, Emilia"]
[Black "Markus, Molli Amina"]
[Result "0-1"]
[ECO "B23"]
[WhiteElo "1415"]
[BlackElo "1755"]
[Annotator "NA RC"]
[PlyCount "106"]
[EventDate "2019.06.21"]
[EventType "swiss"]
[EventCountry "HUN"]
[SourceTitle "playchess.com"]
[Source "ChessBase"]
[SourceQuality "1"]
[TimeControl "40/5400+30:1800+30"]

1. e4 {[%emt 0:00:02]} c5 {[%emt 0:00:10]} 2. Nc3 {[%emt 0:00:04]} e6 {[%emt 0:00:39]} 3. Nge2 {[%emt 0:00:08]} Nc6 {[%emt 0:00:43]} 4. g3 {[%emt 0:00:32]} a6 {[%emt 0:01:27]} 5. d4 {[%emt 0:01:36]} cxd4 {[%emt 0:00:35]} 6. Nxd4 {[%emt 0:01:03]} d6 {[%emt 0:03:13]} 7. Bg2 {[%emt 0:01:12]} Qc7 {[%emt 0:02:44]} 8. Be3 {[%emt 0:05:53]} Nf6 {[%emt 0:02:00]} 9. O-O {[%emt 0:04:09]} Bd7 {[%emt 0:01:50]} 10. a3 {[%emt 0:01:22]} Be7 {[%emt 0:01:05]} 11. f4 {[%emt 0:07:42]} Nxd4 {[%emt 0:03:35]} 12. Bxd4 {[%emt 0:01:02]} Bc6 {[%emt 0:08:59]} 13. Bf2 {[%emt 0:05:25]} O-O {[%emt 0:01:46]} 14. g4 {[%emt 0:06:34]} b5 {[%emt 0:04:25]} 15. g5 {[%emt 0:02:08]} Nd7 {[%emt 0:00:39]} 16. h4 {[%emt 0:02:05]} Qb7 {[%emt 0:03:37]} 17. Qg4 {[%emt 0:04:45]} f5 {[%emt 0:20:51]} 18. gxf6 {[%emt 0:10:09]} Rxf6 {[%emt 0:00:06]} 19. h5 {[%emt 0:00:20]} Raf8 {[%emt 0:07:17]} 20. Bh4 {[%emt 0:02:10]} R6f7 {[%emt 0:00:47]} 21. Bg3 {[%emt 0:01:00]} Nc5 {[%emt 0:02:10]} 22. Rae1 {[%emt 0:03:16]} Bf6 {[%emt 0:03:08]} 23. Bh4 {[%emt 0:07:23]} Bxc3 {[%emt 0:00:55]} 24. bxc3 {[%emt 0:00:28]} Bxe4 {[%emt 0:03:36]} 25. Bxe4 {[%emt 0:00:22]} Nxe4 {[%emt 0:00:06]} 26. Qxe6 {[%emt 0:01:04]} Qb6+ {[%emt 0:02:14]} 27. Bf2 {[%emt 0:00:14]} Nxf2 {[%emt 0:00:07]} 28. Rxf2 {[%emt 0:00:01]} Kh8 {[%emt 0:01:57]} 29. Re3 {[%emt 0:00:31]} h6 {[%emt 0:01:43]} 30. Qe4 {[%emt 0:03:19]} Qc5 {[%emt 0:01:34]} 31. c4 {[%emt 0:01:07]} bxc4 {[%emt 0:01:06]} 32. Kg2 {[%emt 0:00:45]} d5 {[%emt 0:01:58]} 33. Qe6 {[%emt 0:00:45]} Qd4 {[%emt 0:02:07]} 34. Ref3 {[%emt 0:00:44]} Rf6 {[%emt 0:01:11]} 35. Qg4 {[%emt 0:00:53]} Qe4 {[%emt 0:00:53]} 36. Kh3 {[%emt 0:01:39]} R8f7 {[%emt 0:01:40]} 37. f5 {[%emt 0:01:05]} Qe5 {[%emt 0:01:31]} 38. Qg3 {[%emt 0:02:11]} Qe7 {[%emt 0:00:55]} 39. Qg4 {[%emt 0:01:00]} Qd7 {[%emt 0:00:25]} 40. Rf4 {[%emt 0:00:00]} Re7 {[%emt 0:00:00]} 41. R4f3 {[%emt 0:02:56]} Re4 {[%emt 0:01:33]} 42. Qg3 {[%emt 0:00:52]} Qe8 {[%emt 0:01:01]} 43. Rf4 {[%emt 0:01:10]} Qxh5+ {[%emt 0:00:28]} 44. Rh4 {[%emt 0:00:29]} Rxh4+ {[%emt 0:00:30]} 45. Qxh4 {[%emt 0:00:03]} Rxf5 {[%emt 0:01:15]} 46. Qxh5 {[%emt 0:01:01]} Rxh5+ {[%emt 0:00:02]} 47. Kg4 {[%emt 0:00:12]} Rg5+ {[%emt 0:00:07]} 48. Kf4 {[%emt 0:00:23]} g6 {[%emt 0:00:44]} 49. Rh2 {[%emt 0:00:32]} Kg7 {[%emt 0:00:14]} 50. c3 {[%emt 0:00:32]} Rf5+ {[%emt 0:00:17]} 51. Kg4 {[%emt 0:00:44]} h5+ {[%emt 0:00:31]} 52. Kg3 {[%emt 0:00:07]} Kf6 {[%emt 0:00:12]} 53. Rd2 {[%emt 0:00:30]} g5 {[%emt 0:00:21]} 0-1

[Event "HUN-ch U8-U18 2019"]
[Site "Balatonlelle"]
[Date "2019.06.26"]
[Round "7.2"]
[White "Juhasz, Judit"]
[Black "Ivan, Reka Gyongyver"]
[Result "1-0"]
[ECO "B12"]
[WhiteElo "1963"]
[BlackElo "1619"]
[Annotator "NA RC"]
[PlyCount "81"]
[EventDate "2019.06.21"]
[EventType "swiss"]
[EventCountry "HUN"]
[SourceTitle "playchess.com"]
[Source "ChessBase"]
[SourceQuality "1"]
[TimeControl "40/5400+30:1800+30"]

1. e4 {[%emt 0:00:02]} c6 {[%emt 0:00:07]} 2. d4 {[%emt 0:00:06]} d5 {[%emt 0:00:06]} 3. e5 {[%emt 0:00:08]} Bf5 {[%emt 0:00:11]} 4. h4 {[%emt 0:00:12]} h5 {[%emt 0:00:09]} 5. Bd3 {[%emt 0:00:08]} Bxd3 {[%emt 0:00:08]} 6. Qxd3 {[%emt 0:00:05]} Qa5+ {[%emt 0:00:48]} 7. Nd2 {[%emt 0:00:12]} e6 {[%emt 0:00:12]} 8. Ngf3 {[%emt 0:00:33]} Qa6 {[%emt 0:00:22]} 9. c4 {[%emt 0:00:16]} Nh6 {[%emt 0:01:49]} 10. O-O {[%emt 0:01:54]} Be7 {[%emt 0:01:22]} 11. b3 {[%emt 0:00:50]} Nf5 {[%emt 0:00:47]} 12. g3 {[%emt 0:00:19]} Nd7 {[%emt 0:00:33]} 13. a4 {[%emt 0:02:44]} O-O {[%emt 0:02:30]} 14. Rd1 {[%emt 0:03:50]} Rfd8 {[%emt 0:02:54]} 15. Qc2 {[%emt 0:07:40]} dxc4 {[%emt 0:05:27]} 16. bxc4 {[%emt 0:02:27]} Qa5 {[%emt 0:04:42]} 17. Bb2 {[%emt 0:09:40]} Nb6 {[%emt 0:02:07]} 18. Bc3 {[%emt 0:01:53]} Qa6 {[%emt 0:01:13]} 19. Qb3 {[%emt 0:00:50]} Rac8 {[%emt 0:08:20]} 20. a5 {[%emt 0:01:41]} Nd7 {[%emt 0:00:55]} 21. Ne4 {[%emt 0:00:52]} Rc7 {[%emt 0:06:37]} 22. Nfg5 {[%emt 0:05:28]} b6 {[%emt 0:02:06]} 23. axb6 {[%emt 0:02:43]} Qxb6 {[%emt 0:00:09]} 24. Qa4 {[%emt 0:01:28]} Qb7 {[%emt 0:08:06]} 25. Ba5 {[%emt 0:04:16]} Nb6 {[%emt 0:00:55]} 26. Qa2 {[%emt 0:02:09]} Rcd7 {[%emt 0:07:53]} 27. c5 {[%emt 0:03:15]} Nxd4 {[%emt 0:02:12]} 28. Rdb1 {[%emt 0:01:22]} Nb5 {[%emt 0:02:54]} 29. cxb6 {[%emt 0:04:46]} axb6 {[%emt 0:00:32]} 30. Bd2 {[%emt 0:02:19]} Rd5 {[%emt 0:04:04]} 31. Bf4 {[%emt 0:04:51]} Rd4 {[%emt 0:04:13]} 32. Qc2 {[%emt 0:05:47]} Qd7 {[%emt 0:02:19]} 33. Nf6+ {[%emt 0:06:58]} Bxf6 {[%emt 0:01:47]} 34. Qh7+ {[%emt 0:00:10]} Kf8 {[%emt 0:00:18]} 35. exf6 {[%emt 0:00:21]} gxf6 {[%emt 0:00:31]} 36. Ne4 {[%emt 0:00:41]} Ke7 {[%emt 0:05:22]} 37. Re1 {[%emt 0:04:09]} Rd5 {[%emt 0:06:40]} 38. Qg7 {[%emt 0:01:30]} Rf5 {[%emt 0:01:05]} 39. Nxf6 {[%emt 0:00:48]} Qd4 {[%emt 0:03:45]} 40. Rxe6+ {[%emt 0:00:00]} Kxe6 {[%emt 0:00:00]} 41. Re1+ {[%emt 0:02:06] Kd5} 1-0

[Event "HUN-ch U8-U18 2019"]
[Site "Balatonlelle"]
[Date "2019.06.26"]
[Round "7.2"]
[White "Kiraly, Lilla Virag"]
[Black "Suli, Henrietta"]
[Result "0-1"]
[ECO "C27"]
[WhiteElo "1557"]
[BlackElo "1107"]
[Annotator "NA RC"]
[PlyCount "48"]
[EventDate "2019.06.21"]
[EventType "swiss"]
[EventCountry "HUN"]
[SourceTitle "playchess.com"]
[Source "ChessBase"]
[SourceQuality "1"]
[TimeControl "40/5400+30:1800+30"]

1. e4 {[%emt 0:00:05]} e5 {[%emt 0:00:05]} 2. Nc3 {[%emt 0:00:10]} Nf6 {[%emt 0:00:12]} 3. Bc4 {[%emt 0:00:13]} Nxe4 {[%emt 0:00:18]} 4. Qh5 {[%emt 0:00:53]} Nd6 {[%emt 0:00:28]} 5. Qxe5+ {[%emt 0:00:43]} Qe7 {[%emt 0:03:18]} 6. Qxe7+ {[%emt 0:00:35]} Bxe7 {[%emt 0:00:15]} 7. Bb3 {[%emt 0:01:11]} b5 {[%emt 0:01:35]} 8. Nf3 {[%emt 0:05:07]} Bb7 {[%emt 0:01:09]} 9. Nd4 {[%emt 0:13:26]} a6 {[%emt 0:04:31]} 10. Bd5 {[%emt 0:02:55]} c6 {[%emt 0:01:29]} 11. Bf3 {[%emt 0:00:46]} Bf6 {[%emt 0:04:18]} 12. Nb3 {[%emt 0:09:29]} Nc4 {[%emt 0:09:24]} 13. Ne4 {[%emt 0:08:20]} Be5 {[%emt 0:08:19]} 14. c3 {[%emt 0:06:08]} d5 {[%emt 0:04:01]} 15. Nec5 {[%emt 0:04:55]} Bc8 {[%emt 0:01:45]} 16. d3 {[%emt 0:06:19]} Nd6 {[%emt 0:03:18]} 17. a4 {[%emt 0:15:03]} Nd7 {[%emt 0:08:50]} 18. axb5 {[%emt 0:02:41]} Nxb5 {[%emt 0:02:26]} 19. c4 {[%emt 0:03:16]} Nxc5 {[%emt 0:06:08]} 20. Nxc5 {[%emt 0:05:58]} Nd4 {[%emt 0:02:15]} 21. Bd1 {[%emt 0:06:27]} Bd6 {[%emt 0:03:25]} 22. Nb3 {[%emt 0:05:10]} c5 {[%emt 0:02:18]} 23. Nxd4 {[%emt 0:00:33]} cxd4 {[%emt 0:00:47]} 24. Bf3 {[%emt 0:00:44]} Ra7 {[%emt 0:02:34]} 0-1

[Event "HUN-ch U8-U18 2019"]
[Site "Balatonlelle"]
[Date "2019.06.26"]
[Round "7.3"]
[White "Lukacs, Anna Kata"]
[Black "Gombocz, Zsofia"]
[Result "1-0"]
[ECO "C29"]
[WhiteElo "1915"]
[BlackElo "2077"]
[Annotator "NA RC"]
[PlyCount "101"]
[EventDate "2019.06.21"]
[EventType "swiss"]
[EventCountry "HUN"]
[SourceTitle "playchess.com"]
[Source "ChessBase"]
[SourceQuality "1"]
[TimeControl "40/5400+30:1800+30"]

1. e4 {[%emt 0:00:04]} e5 {[%emt 0:00:07]} 2. Nc3 {[%emt 0:00:00]} Nf6 {[%emt 0:00:08]} 3. f4 {[%emt 0:00:01]} d5 {[%emt 0:00:11]} 4. fxe5 {[%emt 0:00:17]} Nxe4 {[%emt 0:00:10]} 5. Qf3 {[%emt 0:00:14]} f5 {[%emt 0:18:24]} 6. Nh3 {[%emt 0:01:42]} Bc5 {[%emt 0:00:38]} 7. d3 {[%emt 0:00:08]} Nxc3 {[%emt 0:01:14]} 8. bxc3 {[%emt 0:00:27]} d4 {[%emt 0:03:17]} 9. Bg5 {[%emt 0:11:20]} Qd7 {[%emt 0:00:30]} 10. Nf4 {[%emt 0:00:30]} O-O {[%emt 0:00:30]} 11. e6 {[%emt 0:00:30]} Qc6 {[%emt 0:00:30]} 12. Be2 {[%emt 0:00:30]} dxc3 {[%emt 0:00:30]} 13. e7 {[%emt 0:00:30]} Re8 {[%emt 0:00:30]} 14. Qd5+ {[%emt 0:00:30]} Qxd5 {[%emt 0:00:30]} 15. Nxd5 {[%emt 0:00:30]} Bd6 {[%emt 0:16:47]} 16. Bh5 {[%emt 0:33:25]} g6 {[%emt 0:03:04]} 17. Nf6+ {[%emt 0:00:20]} Kf7 {[%emt 0:00:09]} 18. Nxe8 {[%emt 0:00:30]} Kxe8 {[%emt 0:01:01]} 19. Bf3 {[%emt 0:00:27]} Bxe7 {[%emt 0:00:32]} 20. Bxe7 Kxe7 {[%emt 0:00:13]} 21. Rb1 {[%emt 0:01:29]} c6 {[%emt 0:02:49]} 22. Kf2 {[%emt 0:00:47]} Nd7 {[%emt 0:02:32]} 23. Rhe1+ {[%emt 0:00:36]} Kf7 {[%emt 0:00:52]} 24. Rb3 {[%emt 0:00:50]} Nb6 {[%emt 0:01:08]} 25. Rxc3 {[%emt 0:04:26]} Be6 {[%emt 0:00:41]} 26. Rc5 {[%emt 0:02:54]} Nd7 {[%emt 0:04:30]} 27. Ra5 {[%emt 0:03:16]} a6 {[%emt 0:03:05]} 28. a3 {[%emt 0:03:25]} Ra7 {[%emt 0:01:35]} 29. Ra4 {[%emt 0:01:36]} a5 {[%emt 0:00:53]} 30. Rd4 {[%emt 0:01:25]} Ke7 {[%emt 0:04:27]} 31. g4 {[%emt 0:06:01]} c5 {[%emt 0:03:09]} 32. Rf4 {[%emt 0:00:58]} Kf6 {[%emt 0:00:56]} 33. gxf5 {[%emt 0:00:30]} Bxf5 {[%emt 0:01:38]} 34. Be4 {[%emt 0:03:53]} Ne5 {[%emt 0:02:02]} 35. Rb1 {[%emt 0:04:08]} Kg5 {[%emt 0:05:48]} 36. Kg3 {[%emt 0:00:57]} Nd7 {[%emt 0:05:04]} 37. h4+ {[%emt 0:03:26]} Kf6 {[%emt 0:00:54]} 38. Rxb7 {[%emt 0:02:14]} Rxb7 {[%emt 0:00:46]} 39. Bxb7 {[%emt 0:00:07]} Nb6 {[%emt 0:00:29]} 40. Be4 {[%emt 0:00:00]} Ke5 {[%emt 0:00:00]} 41. Bxf5 {[%emt 0:02:12]} gxf5 {[%emt 0:01:11]} 42. Rf1 {[%emt 0:02:00]} Nd5 {[%emt 0:01:29]} 43. Kf3 {[%emt 0:08:09]} Kd4 {[%emt 0:12:36]} 44. Ke2 {[%emt 0:02:33]} f4 {[%emt 0:00:34]} 45. Kd2 {[%emt 0:01:00]} Ke5 {[%emt 0:01:26]} 46. Rg1 {[%emt 0:02:04]} Ne3 {[%emt 0:00:54]} 47. Rg7 {[%emt 0:02:12]} h6 {[%emt 0:00:24]} 48. Ra7 {[%emt 0:01:41]} Nf5 {[%emt 0:01:32]} 49. Rxa5 {[%emt 0:02:06]} Kd5 {[%emt 0:01:50]} 50. Ra4 {[%emt 0:04:26]} Ke5 {[%emt 0:00:29]} 51. Rc4 {[%emt 0:01:38]} 1-0